bitfinex-derivatives/quotes_ETHF0:USTF0_20240924
["timestamp","ask_amount","ask_price","bid_price","bid_amount"]
[1727177299772,1.75475621,2644.2,2644.0,1.23]
[1727177300567,1.75475621,2644.2,2644.0,1.60822]
[1727177300763,2.13296621,2644.2,2644.0,1.60822]
[1727177300978,2.13296621,2644.2,2644.1,0.37821]
[1727177301282,0.37821,2644.1,2644.0,1.60822]
[1727177301576,1.75475621,2644.2,2644.0,1.60822]
[1727177301979,0.37821,2644.1,2644.0,1.23]
[1727177302479,1.14851,2644.2,2644.0,1.60823]
[1727177302865,0.37821,2644.1,2644.0,1.23]
[1727177304471,0.37821,2644.1,2644.0,1.60823]
[1727177304677,0.37821,2644.1,2644.0,1.23]
[1727177305075,0.7703,2644.2,2644.0,1.60822]
[1727177305280,0.37821,2644.1,2644.0,1.60822]
[1727177306185,1.1485,2644.2,2644.0,1.60822]
[1727177307989,0.37821,2644.1,2644.0,1.60822]
[1727177310494,0.7703,2644.2,2644.0,1.60822]
[1727177310885,0.7703,2644.2,2644.0,1.23]
[1727177311084,1.14851,2644.2,2644.0,1.60822]
[1727177311901,0.3759,2644.4,2644.2,0.3782]
[1727177312193,0.75408,2644.4,2644.3,1.60819]
[1727177312583,0.75408,2644.4,2644.3,1.23]
[1727177312780,0.75408,2644.4,2644.3,1.60819]
[1727177312781,0.75407,2644.4,2644.3,1.60819]
[1727177312988,0.3759,2644.4,2644.3,1.60819]
[1727177314088,0.75407,2644.4,2644.3,1.60819]
[1727177314287,0.3759,2644.4,2644.3,1.60819]
[1727177318890,0.75587,2644.5,2644.4,0.37817]
[1727177319097,0.37817,2644.5,2644.4,0.37817]
[1727177320092,0.37817,2644.5,2644.3,1.60817]
[1727177320683,0.37817,2644.4,2644.3,1.60817]
[1727177320996,0.37817,2644.4,2644.3,1.23]
[1727177321385,2.29742621,2644.6,2644.2,0.37819]
[1727177321593,0.37818,2644.4,2644.2,0.37819]
[1727177322091,2.29742621,2644.6,2644.2,0.37819]
[1727177322289,0.3863,2644.3,2644.1,1.73873501]
[1727177322486,0.7645,2644.3,2644.2,0.3782]
[1727177323894,0.3863,2644.3,2644.2,1.6082]
[1727177324399,0.76449,2644.3,2644.2,1.6082]
[1727177324692,0.76449,2644.3,2644.2,1.23]
[1727177325095,0.76449,2644.3,2644.2,1.6082]
[1727177327699,0.37819,2644.3,2644.2,1.6082]
[1727177327891,0.77108,2644.4,2644.3,0.37819]
[1727177329102,2.29474621,2644.6,2644.2,1.23]
[1727177329302,1.72749621,2644.6,2644.5,1.23]
[1727177331807,2.34815489,2644.8,2644.7,0.37813]
[1727177331808,0.98445621,2644.8,2644.7,0.37813]
[1727177332006,0.37811,2644.9,2644.8,0.37811]
[1727177332805,1.36312959,2644.9,2644.8,0.37811]
[1727177334301,0.37811,2644.9,2644.8,0.37811]
[1727177334701,1.36317615,2644.9,2644.8,0.37811]
[1727177334899,0.98506615,2644.9,2644.8,0.37811]
[1727177335106,1.36316615,2644.9,2644.8,0.37811]
[1727177335500,0.3781,2644.9,2644.8,0.37811]
[1727177338204,1.36325266,2644.9,2644.8,0.37811]
[1727177338402,0.3781,2644.9,2644.8,0.37811]
[1727177339308,1.36315004,2644.9,2644.8,0.37811]
[1727177340612,0.37811,2644.8,2644.7,1.60812]
[1727177341001,0.37811,2644.9,2644.7,1.23]
[1727177341308,0.37811,2644.9,2644.8,1.60811]
[1727177341504,0.37811,2644.9,2644.8,1.23]
[1727177341807,0.37813,2644.7,2644.6,1.23]
[1727177342010,0.37814,2644.6,2644.5,0.37815]
[1727177342215,1.51154,2644.6,2644.5,1.60815]
[1727177342704,1.51154,2644.6,2644.5,1.23]
[1727177343006,2.4569,2644.6,2644.5,1.23]
[1727177343504,3.44195004,2644.6,2644.5,1.23]
[1727177343704,0.94541,2644.5,2644.2,1.36962501]
[1727177343907,0.37819,2644.3,2644.2,0.37819]
[1727177344801,1.32366,2644.3,2644.2,1.23]
[1727177344999,2.30871004,2644.3,2644.2,1.23]
[1727177346711,1.32366,2644.3,2644.2,1.23]
[1727177347111,0.37819,2644.3,2644.2,1.23]
[1727177348004,1.85701208,2644.3,2644.2,1.23]
[1727177348503,1.85701208,2644.3,2644.2,1.6082]
[1727177348810,0.98487607,2644.3,2644.2,1.6082]
[1727177350016,1.36306607,2644.3,2644.2,1.6082]
[1727177350701,0.98487607,2644.3,2644.2,1.6082]
[1727177351105,1.36306607,2644.3,2644.2,1.6082]
[1727177351309,0.98487607,2644.3,2644.2,1.6082]
[1727177353007,0.98487607,2644.3,2644.2,1.9701]
[1727177353908,1.36306607,2644.3,2644.2,1.9701]
[1727177354714,0.98487607,2644.3,2644.2,1.9701]
[1727177356011,0.37818,2644.4,2644.3,0.37819]
[1727177356318,0.37819,2644.3,2644.2,0.3782]
[1727177358921,0.37819,2644.3,2644.2,1.6082]
[1727177360625,0.37819,2644.3,2644.2,1.23]
[1727177360807,2.30853607,2644.3,2644.2,1.23]
[1727177361116,0.3782,2644.2,2644.1,1.23]
[1727177361421,1.5002,2644.2,2644.1,1.23]
[1727177361914,5.65351,2644.2,2644.1,1.60821]
[1727177363119,5.65351,2644.2,2644.1,1.23]
[1727177364215,6.63838607,2644.2,2644.1,1.23]
[1727177365323,5.65351,2644.2,2644.1,1.23]
[1727177370029,6.63838607,2644.2,2644.1,1.23]
[1727177374730,6.63838607,2644.2,2644.1,1.60821]
[1727177375026,6.63838607,2644.2,2644.1,1.23]
[1727177376925,6.63838607,2644.2,2644.1,1.60821]
[1727177377121,6.63838607,2644.2,2644.1,1.23]
[1727177377527,6.63838607,2644.2,2644.1,1.60821]
[1727177377826,4.708,2644.2,2644.1,1.60821]
[1727177378529,5.65351,2644.2,2644.1,1.23]
[1727177378725,5.65351,2644.2,2644.1,1.60821]
[1727177384231,6.63838607,2644.2,2644.1,1.60821]
[1727177385027,7.32154914,2644.2,2644.1,1.60821]
[1727177385228,5.84272706,2644.2,2644.1,1.60821]
[1727177387735,7.81248195,2644.2,2644.1,1.60821]
[1727177389540,7.8124803,2644.2,2644.1,1.60821]
[1727177389736,7.8124803,2644.2,2644.1,1.23]
[1727177391340,7.8124803,2644.2,2644.1,1.60821]
[1727177391538,7.0717803,2644.2,2644.1,1.60821]
[1727177391740,2.5371703,2644.2,2644.1,1.60821]
[1727177392135,5.7449703,2644.2,2644.1,1.60821]
[1727177393041,5.06445078,2644.2,2644.1,3.6720061]
[1727177393441,5.06445078,2644.2,2644.1,4.16772361]
[1727177393743,1.85665078,2644.2,2644.1,4.16772361]
[1727177393942,1.85665078,2644.2,2644.1,3.67287267]
[1727177394135,1.85665078,2644.2,2644.1,2.68057109]
[1727177394330,1.85665078,2644.2,2644.1,3.67238152]
[1727177394539,0.3782,2644.2,2644.1,4.16721854]
[1727177394749,1.36386304,2644.2,2644.1,4.16721854]
[1727177396950,1.85665078,2644.2,2644.1,4.16721854]
[1727177397140,0.3782,2644.2,2644.1,4.16721854]
[1727177398340,1.36391961,2644.2,2644.1,4.16721854]
[1727177400148,0.56740575,2644.2,2644.1,2.60066746]
[1727177400946,1.51291575,2644.2,2644.1,0.99245746]
[1727177401144,1.32375,2644.1,2644.0,0.99245746]
[1727177401448,1.87805575,2644.1,2644.0,0.99245746]
[1727177401838,3.84781064,2644.1,2644.0,0.99245746]
[1727177402648,3.8478259,2644.1,2644.0,0.99245746]
[1727177404256,9.8057659,2644.1,2644.0,0.99245746]
[1727177404454,0.94562,2643.9,2643.7,0.99245746]
[1727177404642,1.32396,2643.7,2643.6,0.99245746]
[1727177404843,0.3783,2643.5,2643.4,0.99245746]
[1727177405044,1.85658831,2643.5,2643.4,2.44293479]
[1727177405252,1.85658831,2643.5,2643.4,2.06462479]
[1727177405446,2.04584796,2643.5,2643.4,2.44298972]
[1727177405645,1.66754796,2643.5,2643.4,3.67298972]
[1727177405853,0.98486423,2643.5,2643.4,3.67253232]
[1727177406041,1.36316423,2643.5,2643.4,3.67253232]
[1727177406244,0.98486423,2643.5,2643.4,3.67253232]
[1727177406551,0.98486423,2643.5,2643.4,2.6010162]
[1727177406757,1.36316423,2643.5,2643.4,2.6010162]
[1727177406945,1.36316423,2643.5,2643.4,3.67230024]
[1727177407252,1.36316423,2643.5,2643.4,2.60041369]
[1727177407441,0.98486423,2643.5,2643.4,2.22210369]
[1727177407640,1.36316423,2643.5,2643.4,2.60040369]
[1727177408355,0.37829,2643.6,2643.5,0.3783]
[1727177408553,0.37829,2643.6,2643.5,2.60022105]
[1727177408944,0.37829,2643.6,2643.5,2.22192105]
[1727177410350,1.32401,2643.6,2643.5,1.23]
[1727177410549,0.3783,2643.5,2643.4,2.60023105]
[1727177410749,0.3783,2643.5,2643.4,2.22192105]
[1727177410750,1.1425,2643.5,2643.4,2.22192105]
[1727177412347,1.1425,2643.5,2643.4,2.60023105]
[1727177412556,1.1425,2643.5,2643.4,2.22192105]
[1727177413152,1.1425,2643.5,2643.4,2.60023105]
[1727177413448,1.1425,2643.5,2643.4,1.60831]
[1727177413650,0.37831,2643.4,2643.3,0.99192105]
[1727177413844,0.74321,2643.4,2643.3,0.99110362]
[1727177414658,0.37833,2643.3,2643.2,2.61380362]
[1727177414863,0.37833,2643.3,2643.2,3.68385985]
[1727177415352,0.37833,2643.3,2643.2,4.06219985]
[1727177415654,0.37833,2643.3,2643.2,2.99214362]
[1727177419655,0.74322,2643.4,2643.3,0.37833]
[1727177421350,0.3649,2643.4,2643.3,0.37833]
[1727177421553,0.74321,2643.4,2643.3,0.37833]
[1727177426659,0.37833,2643.3,2643.2,2.00103]
[1727177428262,0.3649,2643.4,2643.3,0.37833]
[1727177428459,4.19266423,2643.7,2643.2,2.56855]
[1727177428460,0.3783,2643.6,2643.2,2.56855]
[1727177428660,0.98486423,2643.9,2643.5,1.23]
[1727177428862,0.98486423,2643.9,2643.7,1.23]
[1727177428863,1.93048423,2643.9,2643.7,1.23]
[1727177429057,1.93048423,2643.9,2643.3,0.99110362]
[1727177429058,0.94569,2643.7,2643.3,0.99110362]
[1727177429254,0.37831,2643.5,2643.4,0.37831]
[1727177430767,0.37831,2643.5,2643.4,1.60831]
[1727177431064,0.3834,2643.6,2643.4,1.60831]
[1727177431065,0.7617,2643.6,2643.5,0.3783]
[1727177431272,0.7617,2643.6,2643.5,1.6083]
[1727177431273,0.3783,2643.6,2643.5,1.6083]
[1727177432762,0.37828,2643.7,2643.6,0.37827]
[1727177433173,0.37828,2643.7,2643.5,1.23]
[1727177433174,0.37829,2643.6,2643.5,1.60829]
[1727177434467,0.37829,2643.6,2643.5,2.59939362]
[1727177434657,0.37829,2643.6,2643.5,1.36939362]
[1727177434862,0.37829,2643.6,2643.5,0.37829]
[1727177436870,0.37828,2643.7,2643.6,0.37827]
[1727177437678,1.36314423,2643.7,2643.6,0.37827]
[1727177437972,0.37828,2643.7,2643.6,0.37827]
[1727177438179,1.36314423,2643.7,2643.6,0.37827]
[1727177438378,0.37828,2643.7,2643.6,0.37827]
[1727177439179,2.50693423,2643.8,2643.7,0.37827]
[1727177439377,2.50693423,2643.8,2643.7,1.60827]
[1727177439869,2.50693423,2643.8,2643.7,1.98627]
[1727177440067,1.52207,2643.8,2643.7,1.98627]
[1727177440276,1.73683914,2643.8,2643.7,1.98627]
[1727177441277,1.35856914,2643.8,2643.7,1.98627]
[1727177441680,1.73682914,2643.8,2643.7,1.98627]
[1727177441881,1.35856914,2643.8,2643.7,1.98627]
[1727177442283,0.98406914,2643.8,2643.7,1.98627]
[1727177442492,0.98406914,2643.8,2643.7,2.93196]
[1727177442678,0.98406914,2644.1,2644.0,0.37823]
[1727177442881,0.98483566,2644.1,2644.0,1.60823]
[1727177443679,1.36304566,2644.1,2644.0,1.60823]
[1727177445586,0.98483566,2644.1,2643.8,0.99110362]
[1727177445785,0.98483566,2644.1,2643.7,2.59932866]
[1727177445786,0.37826,2643.8,2643.7,2.59932866]
[1727177445986,0.37826,2643.9,2643.8,0.37825]
[1727177446287,0.37827,2643.8,2643.7,0.37827]
[1727177446483,0.77317,2643.8,2643.7,0.37827]
[1727177447786,0.77317,2643.8,2643.7,1.36933866]
[1727177449490,0.37827,2643.7,2643.6,0.99106866]
[1727177449681,1.36310566,2643.7,2643.6,0.37829]
[1727177451982,0.37829,2643.6,2643.5,2.59935866]
[1727177452179,1.12879,2643.6,2643.5,2.59935866]
[1727177452782,1.12879,2643.6,2643.5,2.67851944]
[1727177452783,0.7505,2643.6,2643.5,2.67851944]
[1727177452983,0.7505,2643.6,2643.5,4.16567196]
[1727177453389,0.7505,2643.6,2643.5,2.67851944]
[1727177453783,1.12879,2643.6,2643.5,2.67851944]
[1727177456288,1.12879,2643.6,2643.5,1.44851944]
[1727177456495,1.12879,2643.6,2643.5,2.43997763]
[1727177456898,1.12879,2643.6,2643.5,1.36974819]
[1727177457401,0.98483566,2643.7,2643.6,0.37829]
[1727177457402,0.37828,2643.7,2643.6,0.37829]
[1727177457702,0.77317,2643.8,2643.7,0.37827]
[1727177457899,0.77317,2643.8,2643.7,1.36968575]
[1727177458600,4.19263566,2643.9,2643.8,0.37826]
[1727177458800,4.19263566,2643.9,2643.8,2.59967575]
[1727177458801,0.37824,2643.9,2643.8,2.59967575]
[1727177459189,0.37824,2643.9,2643.8,1.36967575]
[1727177460500,0.37824,2643.9,2643.8,0.99141575]
[1727177460705,1.32386,2643.9,2643.8,0.99141575]
[1727177460894,1.32386,2643.9,2643.3,4.19921575]
[1727177460895,9.97164758,2643.9,2643.3,4.19921575]
[1727177461096,0.37831,2643.4,2643.3,0.37833]
[1727177461299,1.85645767,2643.4,2643.3,0.37833]
[1727177461506,2.23975767,2643.4,2643.3,0.37833]
[1727177462202,1.86144767,2643.4,2643.1,0.99141575]
[1727177462406,0.37837,2643.1,2643.0,0.37836]
[1727177462592,1.36369711,2643.1,2643.0,0.37836]
[1727177462802,2.11979711,2643.1,2643.0,0.37836]
[1727177463193,1.74142711,2643.1,2643.0,0.37836]
[1727177463394,0.98532711,2643.1,2643.0,0.37836]
[1727177463607,0.98532711,2643.2,2643.1,0.37836]
[1727177463802,0.98532711,2643.2,2643.1,1.60836]
[1727177465617,0.98532711,2643.2,2643.1,5.39156]
[1727177468024,0.37833,2643.3,2643.2,0.37834]
[1727177468320,0.37833,2643.3,2643.2,1.36970991]
[1727177470214,0.76162,2643.4,2643.3,0.37833]
[1727177470410,0.37833,2643.3,2643.2,1.36969991]
[1727177475117,0.37833,2643.3,2643.2,0.37833]
[1727177475823,0.98532711,2643.3,2643.1,1.60835]
[1727177476023,0.98532711,2643.3,2643.0,1.23]
[1727177476322,0.98532711,2643.3,2643.0,1.60836]
[1727177476323,0.37836,2643.1,2643.0,1.60836]
[1727177476716,0.37836,2643.1,2643.0,5.77756814]
[1727177477320,0.7793,2643.2,2642.9,1.77046991]
[1727177477524,0.7793,2643.2,2643.1,1.23]
[1727177477525,1.15764,2643.2,2643.1,1.23]
[1727177477827,1.55334,2643.2,2643.1,1.23]
[1727177478223,2.53866711,2643.2,2643.1,1.23]
[1727177478423,1.55334,2643.2,2643.1,1.23]
[1727177479229,2.49921,2643.2,2643.1,1.23]
[1727177479430,2.49921,2643.2,2642.9,1.60839]
[1727177479431,0.37837,2643.0,2642.9,1.60839]
[1727177479624,0.37837,2643.0,2642.9,1.23]
[1727177479826,0.37837,2643.0,2642.9,1.60839]
[1727177480839,0.3957,2643.2,2643.1,0.37836]
[1727177481139,0.98532711,2643.4,2643.3,0.37833]
[1727177481323,4.19312711,2643.5,2643.4,0.37831]
[1727177481632,2.27244767,2643.7,2643.5,0.3783]
[1727177481633,0.37829,2643.6,2643.5,0.3783]
[1727177481934,2.15790711,2643.7,2643.6,0.37829]
[1727177482638,0.37829,2643.6,2643.5,0.3783]
[1727177483134,1.77962711,2643.7,2643.6,0.37829]
[1727177483135,1.17258,2643.7,2643.6,0.37829]
[1727177483330,0.37829,2643.6,2643.5,0.37829]
[1727177483638,1.17258,2643.7,2643.6,0.37829]
[1727177484836,0.37829,2643.6,2643.5,0.37829]
[1727177485138,1.17258,2643.7,2643.5,0.3783]
[1727177485436,1.17258,2643.7,2643.6,0.37829]
[1727177486329,0.3783,2643.5,2643.4,1.36966991]
[1727177486529,0.3783,2643.5,2643.4,0.3783]
[1727177486740,0.37829,2643.6,2643.5,0.37829]
[1727177486933,0.37829,2643.6,2643.5,1.60829]
[1727177487335,1.17258,2643.7,2643.6,0.37829]
[1727177488230,0.7943,2643.7,2643.6,1.60829]
[1727177488433,0.3997,2643.7,2643.6,2.71109]
[1727177488642,0.77797,2643.7,2643.6,2.3328]
[1727177489338,0.3997,2643.7,2643.6,2.71109]
[1727177489637,4.55382711,2644.0,2643.9,0.37824]
[1727177489840,0.7424,2644.0,2643.9,0.37824]
[1727177490540,0.3817,2644.0,2643.9,1.36960991]
[1727177490936,1.36702711,2644.0,2643.9,0.37824]
[1727177491440,0.3817,2644.0,2643.9,0.37824]
[1727177491937,1.36702711,2644.0,2643.9,0.37824]
[1727177492333,0.3817,2644.0,2643.9,0.37824]
[1727177494135,1.73473711,2644.2,2643.8,1.23]
[1727177494331,2.13373711,2644.2,2644.1,0.37821]
[1727177494740,2.13373711,2644.2,2644.0,1.60822]
[1727177497039,2.13373711,2644.2,2644.1,0.37821]
[1727177497240,2.13373711,2644.2,2644.0,1.23]
[1727177497241,2.13373711,2644.2,2644.0,1.60822]
[1727177497435,1.14841,2644.2,2644.0,1.60822]
[1727177498739,1.14841,2644.2,2644.1,0.37821]
[1727177500145,0.7702,2644.2,2643.8,0.99136991]
[1727177500449,0.37823,2644.0,2643.9,4.6006307]
[1727177500644,0.7702,2644.2,2643.9,4.6006307]
[1727177500645,0.37822,2644.1,2643.9,4.6006307]
[1727177501345,0.37822,2644.1,2643.9,4.6006207]
[1727177501540,0.37822,2644.1,2644.0,0.37823]
[1727177509365,0.37822,2644.1,2644.0,0.37822]
[1727177509656,1.14841,2644.2,2644.1,0.37821]
[1727177511753,0.37822,2644.1,2644.0,0.37822]
[1727177513767,1.75552711,2644.2,2643.9,1.23]
[1727177514058,2.46347478,2644.7,2644.3,0.37819]
[1727177514359,2.23586356,2645.0,2644.7,0.37813]
[1727177514360,0.3787,2644.9,2644.7,0.37813]
[1727177514658,0.37816,2644.5,2644.4,3.93787485]
[1727177514962,3.2078,2644.5,2644.1,1.1445]
[1727177515156,2.12562711,2644.4,2644.1,0.37821]
[1727177515354,2.50380711,2644.4,2644.1,0.37821]
[1727177515959,0.37819,2644.3,2644.0,1.60822]
[1727177516154,2.12562711,2644.4,2644.0,1.23]
[1727177516360,0.37819,2644.3,2644.0,1.60822]
[1727177516547,0.37819,2644.3,2644.1,1.60821]
[1727177516753,2.12562711,2644.4,2644.2,0.3782]
[1727177517061,2.12562711,2644.4,2644.3,1.23]
[1727177517461,2.12562711,2644.4,2644.3,1.60819]
[1727177518266,1.1403,2644.4,2644.3,1.23]
[1727177518456,2.12562711,2644.4,2644.3,1.23]
[1727177519057,2.12562711,2644.4,2644.3,1.60819]
[1727177519355,1.1403,2644.4,2644.3,1.23]
[1727177521464,1.1403,2644.4,2644.3,1.60819]
[1727177522065,1.1403,2644.4,2644.3,1.23]
[1727177522562,1.1403,2644.4,2644.3,1.60819]
[1727177523461,1.51847,2644.4,2644.3,1.23]
[1727177524362,1.51847,2644.4,2644.3,1.60819]
[1727177524869,1.51847,2644.4,2644.3,1.23]
[1727177525862,13.13722711,2644.4,2643.8,1.36962991]
[1727177526068,0.94558,2644.0,2643.8,1.23]
[1727177526267,0.395,2643.9,2643.8,0.37825]
[1727177526451,0.395,2643.9,2643.8,1.60825]
[1727177527064,0.37821,2644.1,2644.0,0.37823]
[1727177527261,0.37821,2644.1,2644.0,1.60823]
[1727177528169,0.37821,2644.1,2644.0,1.23]
[1727177529568,0.37823,2644.0,2643.9,1.9605]
[1727177529764,1.15303,2644.0,2643.9,1.9605]
[1727177530068,0.37824,2643.9,2643.8,0.99136991]
[1727177530267,0.37824,2643.9,2643.7,1.23]
[1727177530268,0.37826,2643.8,2643.7,1.23]
[1727177532267,0.37826,2643.8,2643.7,1.60827]
[1727177532465,1.36310969,2643.8,2643.7,1.23]
[1727177532967,2.30875969,2643.8,2643.7,1.23]
[1727177533263,1.36310969,2643.8,2643.7,1.23]
[1727177534865,2.30875969,2643.8,2643.7,1.23]
[1727177535060,0.37829,2643.6,2643.5,0.99136991]
[1727177535366,0.37831,2643.4,2643.3,1.23]
[1727177535666,0.37831,2643.4,2643.2,2.49470991]
[1727177535667,2.42393767,2643.4,2643.1,1.60835]
[1727177535862,0.37834,2643.2,2643.1,1.60836]
[1727177536266,0.37834,2643.2,2643.1,1.23]
[1727177537470,0.37834,2643.2,2643.1,1.60836]
[1727177538668,0.37834,2643.3,2643.2,0.37834]
[1727177538869,4.19351136,2643.4,2643.3,0.37833]
[1727177538870,3.58612,2643.4,2643.3,0.37833]
[1727177540266,3.2078,2643.4,2643.3,0.37833]
[1727177540466,0.98571136,2643.7,2643.3,0.7479]
[1727177540676,0.3695,2643.7,2643.6,1.60829]
[1727177541369,0.74778,2643.7,2643.6,1.60829]
[1727177542567,0.74778,2643.7,2643.6,1.23]
[1727177543165,0.3695,2643.7,2643.6,1.60829]
[1727177543578,1.36851136,2644.1,2643.6,1.23]
[1727177543778,1.36851136,2644.1,2643.8,0.37825]
[1727177543779,0.37825,2643.9,2643.8,0.37825]
[1727177545666,0.37825,2643.9,2643.8,1.60825]
[1727177546876,0.75984,2644.0,2643.9,0.37824]
[1727177547573,0.37822,2644.1,2644.0,0.37823]
[1727177547771,0.37822,2644.1,2644.0,1.60823]
[1727177547970,0.37822,2644.1,2644.0,1.23]
[1727177549665,0.37822,2644.1,2644.0,1.60823]
[1727177549876,0.37821,2644.1,2644.0,1.23]
[1727177550176,0.37821,2644.1,2644.0,1.60822]
[1727177550377,1.36392136,2644.1,2644.0,1.60822]
[1727177552971,1.36392136,2644.1,2644.0,1.23]
[1727177553470,1.36392136,2644.1,2644.0,1.60823]
[1727177558476,0.37821,2644.1,2644.0,1.60823]
[1727177563277,1.36390136,2644.4,2644.3,0.37819]
[1727177563479,0.76927,2644.5,2644.4,0.37817]
[1727177563679,0.76927,2644.5,2644.4,1.60817]
[1727177564087,0.76927,2644.5,2644.4,1.23]
[1727177565079,1.71467,2644.5,2644.4,1.23]
[1727177565492,3.87473272,2644.5,2644.4,1.23]
[1727177570208,3.87473118,2644.5,2644.4,1.23]
[1727177572305,1.90386762,2644.5,2644.4,1.23]
[1727177572601,3.87473118,2644.5,2644.4,1.23]
[1727177573311,1.90386762,2644.5,2644.4,1.23]
[1727177573519,1.71467,2644.5,2644.4,1.23]
[1727177574406,1.71467,2644.5,2644.2,0.37819]
[1727177574407,0.76927,2644.5,2644.3,1.23]
[1727177574804,0.37817,2644.4,2644.3,1.23]
[1727177575005,0.37817,2644.4,2644.3,1.60819]
[1727177575216,0.37817,2644.4,2644.3,1.23]
[1727177576302,1.32361,2644.4,2644.3,1.23]
[1727177576611,1.32367,2644.3,2644.2,1.23]
[1727177576811,2.10027,2644.3,2644.2,1.23]
[1727177577817,2.10027,2644.3,2643.8,1.9797]
[1727177577818,0.37824,2643.9,2643.8,1.9797]
[1727177578014,1.32386,2643.9,2643.8,1.23]
[1727177578704,2.46706,2643.9,2643.8,1.23]
[1727177580510,2.46706,2643.9,2643.5,0.37829]
[1727177580511,0.37829,2643.6,2643.5,0.37829]
[1727177580916,0.37829,2643.6,2643.5,5.94990442]
[1727177581111,0.37828,2643.7,2643.6,0.37828]
[1727177581311,0.37828,2643.7,2643.6,1.60828]
[1727177582712,0.37828,2643.7,2643.6,1.23]
[1727177582912,0.37831,2643.4,2643.3,0.37832]
[1727177583115,4.76691832,2643.7,2643.4,0.37831]
[1727177583116,0.3783,2643.5,2643.4,0.37831]
[1727177583317,0.3783,2643.5,2643.4,1.23]
[1727177583918,0.7424,2643.5,2643.4,1.23]
[1727177584118,0.37833,2643.3,2643.2,1.52164]
[1727177584415,0.3641,2643.5,2643.1,3.2078]
[1727177584416,0.37834,2643.2,2643.1,3.2078]
[1727177584616,0.37834,2643.2,2643.1,4.4378]
[1727177585011,0.37834,2643.2,2643.1,1.23]
[1727177585206,0.98451832,2643.3,2643.1,1.23]
[1727177585417,1.36285832,2643.3,2643.1,1.23]
[1727177585821,0.37834,2643.2,2643.1,1.23]
[1727177586120,0.37834,2643.3,2643.1,1.60835]
[1727177586317,0.37834,2643.3,2643.2,0.7916]
[1727177587508,1.36283832,2643.4,2643.2,1.16994]
[1727177587713,1.36283832,2643.4,2643.3,1.23]
[1727177588509,0.37832,2643.4,2643.3,1.23]
[1727177588918,0.37832,2643.4,2643.3,1.615]
[1727177589726,0.37832,2643.4,2643.3,1.23]
[1727177594415,1.32411,2643.4,2643.3,1.23]
[1727177596223,0.37833,2643.3,2643.2,2.0216]
[1727177596418,1.32416,2643.3,2643.2,1.23]
[1727177596615,0.37836,2643.1,2643.0,1.615]
[1727177597224,0.77806,2643.1,2643.0,1.615]
[1727177597418,0.77806,2643.1,2643.0,1.23]
[1727177597620,1.55226,2643.1,2643.0,1.23]
[1727177597818,1.55226,2643.1,2643.0,1.60837]
[1727177598126,0.77806,2643.1,2643.0,1.60837]
[1727177600121,0.37835,2643.2,2643.1,0.37836]
[1727177602522,0.74474,2643.3,2643.2,0.37834]
[1727177602730,0.74474,2643.3,2643.2,1.60834]
[1727177603031,1.72,2643.4,2643.3,0.37832]
[1727177603032,0.37833,2643.4,2643.3,0.37832]
[1727177603228,0.37833,2643.4,2643.3,1.13822]
[1727177603427,0.37833,2643.4,2643.3,1.51442]
[1727177603832,0.3635,2643.5,2643.4,0.37831]
[1727177604026,0.3635,2643.5,2643.4,1.60831]
[1727177604534,1.70291,2643.7,2643.4,1.60831]
[1727177604535,0.94571,2643.7,2643.4,1.60831]
[1727177604742,0.3846,2644.1,2643.6,4.4378]
[1727177604937,0.3723,2644.3,2644.2,0.3782]
[1727177605232,0.3846,2644.4,2644.2,1.23]
[1727177605429,0.76278,2644.4,2644.2,1.60819]
[1727177606337,0.76278,2644.4,2644.2,0.37819]
[1727177606541,0.76278,2644.4,2644.1,2.66]
[1727177606939,0.76278,2644.4,2644.2,0.3782]
[1727177610134,0.3846,2644.4,2644.3,3.03819]
[1727177611240,3.2078,2644.5,2644.4,0.37817]
[1727177611542,3.2078,2644.5,2644.4,0.77337]
[1727177617335,3.58597,2644.5,2644.3,0.37818]
[1727177617644,0.37817,2644.4,2644.3,0.37818]
[1727177617842,3.58597,2644.5,2644.3,0.37818]
[1727177618448,3.58597,2644.5,2644.1,2.66]
[1727177618449,3.2078,2644.5,2644.1,2.66]
[1727177618635,3.2078,2644.5,2644.4,3.03817]
[1727177619650,0.7852,2644.7,2644.6,0.37814]
[1727177620035,4.5668,2644.7,2644.6,0.37814]
[1727177620346,4.94493,2644.7,2644.6,0.37814]
[1727177620554,4.5668,2644.7,2644.6,0.37814]
[1727177620843,4.94493,2644.7,2644.5,3.79915]
[1727177621043,1.16333,2644.7,2644.5,3.79915]
[1727177622149,0.37814,2644.6,2644.5,3.03815]
[1727177622736,0.37814,2644.6,2644.5,2.66]
[1727177624546,0.37814,2644.6,2644.4,3.03817]
[1727177624748,0.7852,2644.7,2644.4,2.66]
[1727177624948,0.37815,2644.6,2644.4,3.03816]
[1727177626243,0.37816,2644.5,2644.4,3.03816]
[1727177626651,0.37816,2644.5,2644.4,2.66]
[1727177627143,0.37816,2644.5,2644.4,3.03817]
[1727177628355,0.37816,2644.5,2644.4,1.60817]
[1727177628753,3.993,2644.7,2644.5,0.37815]
[1727177628947,4.37113,2644.7,2644.6,1.23]
[1727177632673,4.37113,2644.7,2644.6,1.60814]
[1727177633073,4.37113,2644.7,2644.6,1.23]
[1727177638978,4.37113,2644.7,2644.6,1.60814]
[1727177640371,5.31646,2644.7,2644.6,1.23]
[1727177640971,0.37816,2644.6,2644.5,1.23]
[1727177642373,0.37816,2644.6,2644.5,1.60815]
[1727177644581,1.36267832,2644.6,2644.5,1.60815]
[1727177644771,0.37816,2644.6,2644.5,1.60815]
[1727177645486,1.36267832,2644.6,2644.5,1.60815]